Cogmind - Beta 16.1 *** ADVENTURER MODE // 2026.02.14 @ 15:10:42 Player: Wilihelm Result: Destroyed by K5-GPX(j) with Overtuned Pulse Rifle Performance ------------- Evolutions (0) 0 Regions Visited (3) 600 Robots Destroyed (9) 45 Value Destroyed (116) 116 Prototype IDs (9) 180 Alien Tech Used (0) 0 Bonus (800) 800 TOTAL SCORE: 1741 Bonus ------- Registered with UFD 300 Met Optimus in HQ 500 Cogmind --------- Core Integrity 0/250 Matter 300/300 Energy 100/100 System Corruption 0% Temperature Warm (121) Movement Hovering (70) Location -7/Scraptown Parts ------- > --- POWER (1) -------- (None) > --- PROPULSION (2) --- Makeshift Hover Unit > --- UTILITY (2) ------ Small Storage Unit Makeshift Targeting Computer > --- WEAPON (2) ------- (None) > --- INVENTORY (8) ---- Improved Hover Unit Makeshift Hover Unit Antigrav System Improved Heat Sink Makeshift Hacking Suite Makeshift Hacking Suite Makeshift Hacking Suite Makeshift Hacking Suite Peak State ------------ > --- POWER ------------ Micro Fission Core > --- PROPULSION ------- Antigrav System Antigrav System > --- UTILITY ---------- Small Storage Unit A0-MCA's Component Scanner > --- WEAPON ----------- Overtuned Pulse Rifle Overtuned Pulse Rifle > --- INVENTORY -------- Light Nuclear Core Antigrav System Improved Heat Sink Energy Filter Energy Filter Makeshift ECM Suite [Rating: 36] Favorites ----------- Power Light Nuclear Core Engine Ion Engine Power Core Light Nuclear Core Propulsion Aluminum Leg Leg Aluminum Leg Wheel Overtuned Huge Scrapsphere Hover Unit Makeshift Hover Unit Utility Small Storage Unit Device Sensor Array Storage Small Storage Unit Processor Visual Processing Unit Weapon EM Pulse Gun Energy Gun EM Pulse Gun Ballistic Cannon Light Cannon Build | -11 -10 -10 -7 ------- Run | Yrd Mat Sub Scr Slots Evolved . | . . . . Power . | . . . . Propulsion . | . . . . Utility . | . . . . Weapon . | . . . . Parts Attached 28 | 6 5 . 17 Power 7 | 1 1 . 5 Engine 4 | 1 1 . 2 Core 3 | . . . 3 Reactor . | . . . . Propulsion 8 | 2 . . 6 Treads . | . . . . Leg 3 | 2 . . 1 Wheel 1 | . . . 1 Hover 4 | . . . 4 Flight . | . . . . Utility 6 | 1 2 . 3 Device 2 | . 2 . . Storage 1 | 1 . . . Processor 3 | . . . 3 Hackware . | . . . . Protection . | . . . . Artifact . | . . . . Weapon 7 | 2 2 . 3 Energy Gun 5 | 2 . . 3 Energy Cannon . | . . . . Ballistic Gun . | . . . . Ballistic Cannon 2 | . 2 . . Launcher . | . . . . Special Weapon . | . . . . Impact Weapon . | . . . . Slashing Weapon . | . . . . Piercing Weapon . | . . . . Special Melee Weapon . | . . . . Unidentified Prototypes . | . . . . Parts Lost 5 | . . . 5 Power 2 | . . . 2 Propulsion 1 | . . . 1 Utility . | . . . . Weapon 2 | . . . 2 Highest Loss Streak 4 | . . . 4 To Critical Strikes . | . . . . Average Backups 6 | 1 5 8 7 Power 1 | . 1 2 1 Propulsion 1 | . 1 2 1 Utility 3 | . 1 3 3 Weapon . | . . 1 . Tool/Special . | . . . . Unused Backups 27 | . . . 27 Power 4 | . . . 4 Propulsion 7 | . . . 7 Utility 13 | . . . 13 Weapon 3 | . . . 3 Tool/Special . | . . . . Average Slot Usage (%) 83 | . 96 100 74 Engine 6 | . 13 14 2 Core 7 | . . . 11 Leg 22 | . 27 28 18 Wheel 1 | . . . 3 Hover 1 | . . . 3 Device 5 | . 12 14 1 Storage 13 | . 13 14 14 Processor 7 | . . . 12 Energy Gun 9 | . 17 . 6 Ballistic Cannon 5 | . 9 28 . Peak Build Rating 36 | 6 8 8 36 Average Rating 13 | 4 7 8 17 On Entrance 5 | . 6 8 8 Avg Prop Armor Cover (%) 12 | . . . 12 Naked Turns 9 | . 9 . . Heaviest Build 17 | 12 17 17 17 Greatest Support 25 | 20 20 20 25 Greatest Overweight (x) 5 | . 1 . 5 Average Overweight (x) . | . . . . Largest Inventory Capacity 8 | 8 8 8 8 Average Capacity 7 | 7 7 8 8 Most Carried 8 | 3 8 8 8 Average Carried 6 | . 5 8 7 Final Capacity 8 | 8 8 8 8 Final Carried 8 | 1 8 8 8 Class Distribution -------------------- 95% | Mutant 4% | Derelict-Mutant Dominant Class ---------------- Mutant | -10/Materials Mutant | -10/Subcaves Mutant | -7/Scraptown Resources | -11 -10 -10 -7 ----------- Run | Yrd Mat Sub Scr Matter Collected 636 | 193 230 . 213 Remotely . | . . . . Salvage Created 113 | . 113 . . Parts 15 | . 15 . . Haulers Intercepted . | . . . . Recyclers Shooed . | . . . . Parts Field Recycled . | . . . . Retrieved Matter . | . . . . Parts Self-Destructed 3 | . . 3 . Prevented . | . . . . Parts Restored . | . . . . Kills | -11 -10 -10 -7 ------- Run | Yrd Mat Sub Scr Combat Hostiles Destroyed 8 | . 8 . . Guns 3 | . 3 . . Cannons 5 | . 5 . . Classes Destroyed 2 | . 2 . . Watcher 1 | . 1 . . Swarmer 8 | . 8 . . Best Kill Streak 3 | . 3 . . Combat Bots Only 3 | . 3 . . Max Kills in Single Turn 1 | . 1 . . Gunslinging . | . . . . Exploded . | . . . . Melee . | . . . . Uniques/NPCs Destroyed . | . . . . Combat | -11 -10 -10 -7 -------- Run | Yrd Mat Sub Scr Hostile Shots Fired 81 | . 23 . 58 Missed 18 | . 3 . 15 Hits 63 | . 20 . 43 Melee 1 | . . . 1 Projectile 62 | . 20 . 42 Critical Strikes 1 | . 1 . . Damage Taken 841 | . 129 . 712 Core 268 | . 38 . 230 Absorbed by Shields . | . . . . Ignored by Resistances 236 | . 40 . 196 Core Remaining (%) 100 | 100 . . . Volleys Fired 27 | . 23 . 4 Largest 2 | . 2 . 2 Hottest 160 | . 80 . 160 Shots Fired 34 | . 28 . 6 Gun 16 | . 10 . 6 Cannon 18 | . 18 . . Launcher . | . . . . Special . | . . . . Kinetic 18 | . 18 . . Thermal 6 | . . . 6 Explosive . | . . . . Electromagnetic 10 | . 10 . . Robot Hit Streak 8 | . 8 . 3 Robot Miss Streak 3 | . 3 . 1 Penetration Max . | . . . . Secondary Targets 1 | . 1 . . Max Gunslinging Chain 1 | . 1 . . Shots Hit Robots 21 | . 17 . 4 Core Hits 9 | . 9 . . Critical Kills . | . . . . Critical Parts Destroyed . | . . . . Critical Strikes . | . . . . Melee Attacks . | . . . . Impact . | . . . . Slashing . | . . . . Piercing . | . . . . Sneak Attacks . | . . . . Combat Hostiles . | . . . . Follow-up Attacks . | . . . . Damage Inflicted 383 | . 296 . 87 Guns 154 | . 67 . 87 Cannons 229 | . 229 . . Explosions . | . . . . Melee . | . . . . Ramming . | . . . . Kinetic 229 | . 229 . . Thermal 87 | . . . 87 Explosive . | . . . . Electromagnetic 67 | . 67 . . Impact . | . . . . Slashing . | . . . . Piercing . | . . . . Highest Corruption . | . . . . Average Corruption . | . . . . Corruption Purged . | . . . . Corruption Blocked . | . . . . Overload Shots . | . . . . Overflow Damage . | . . . . Projectiles . | . . . . Explosions . | . . . . Melee . | . . . . Knockbacks 4 | . 4 . . Impact . | . . . . Kinetic 3 | . 3 . . Secondary 1 | . 1 . . Self-Inflicted Damage . | . . . . Shots . | . . . . Rammed . | . . . . Targets Rammed . | . . . . Kicked . | . . . . Crushed . | . . . . Highest Temperature 651 | . 72 . 651 Average Temperature 201 | . 34 . 235 Received Heat Transfer 450 | . . . 450 Effects 10 | . . . 10 Shutdowns 2 | . . . 2 Energy Bleed 1 | . . . 1 Matter Decay 1 | . . . 1 Short Circuit 1 | . . . 1 Damage (minor) 1 | . . . 1 Damage (major) 4 | . . . 4 Siege Activations . | . . . . Martial Activations . | . . . . Shielding Activations . | . . . . Robots Disrupted . | . . . . Combat Hostiles . | . . . . Robots Corrupted . | . . . . Combat Hostiles . | . . . . Parts Fried . | . . . . Impact Corruptions . | . . . . Robots Melted . | . . . . Combat Hostiles . | . . . . Parts Melted . | . . . . Heat Transferred 148 | . . . 148 Parts Sabotaged . | . . . . Parts Stolen . | . . . . Parts Stripped . | . . . . Power Chain Reactions . | . . . . Alert | -11 -10 -10 -7 ------- Run | Yrd Mat Sub Scr Maximum Alert Level . | . . . . Low Security (%) 100 | 100 100 . . Level 1 . | . . . . Level 2 . | . . . . Level 3 . | . . . . Level 4 . | . . . . Level 5 . | . . . . High Security . | . . . . Max Security . | . . . . Peak Influence 79 | . 79 . . Initial . | . . . . Average 13 | . 13 . . Influence Increases 260 | . 260 . . Destroy 0b10 Robot/C 160 | . 160 . . Destroy 0b10 Robot/NC 5 | . 5 . . Destroy Leader 22 | . 22 . . Successful Hack 25 | . 25 . . Disable Machine 18 | . 18 . . Lose Combat Pursuer 30 | . 30 . . Influence Decreases 260 | . 235 25 . Entered New Map 14 | . . 14 . Time Decay 246 | . 235 11 . Squads Dispatched . | . . . . Investigation . | . . . . Extermination . | . . . . Reinforcement . | . . . . Assault . | . . . . Garrison . | . . . . Intercept . | . . . . Searches Triggered . | . . . . Construction Impeded . | . . . . Haulers Reinforced . | . . . . Active Scanning Responses . | . . . . Cargo Convoy Interrupts . | . . . . Stealth | -11 -10 -10 -7 --------- Run | Yrd Mat Sub Scr Distress Signals . | . . . . Communications Jammed . | . . . . Distress Signals . | . . . . Times Spotted 40 | . 10 . 30 Peak Tracking Total 11 | . 3 . 11 Tactical Retreats 2 | . 2 . . Traps | -11 -10 -10 -7 ------- Run | Yrd Mat Sub Scr Traps Triggered . | . . . . Indirectly . | . . . . Trap Hack Attempts . | . . . . Triggered . | . . . . Disarmed . | . . . . Reprogrammed . | . . . . Reused . | . . . . Traps Extracted . | . . . . Installed . | . . . . Triggered . | . . . . Machines | -11 -10 -10 -7 ---------- Run | Yrd Mat Sub Scr Machines Disabled 2 | . 2 . . Max in Single Turn 1 | . 1 . . Machines Repaired . | . . . . Machines Dismantled . | . . . . Machines Sabotaged . | . . . . Overloaded Fab Kills . | . . . . Hacking | -11 -10 -10 -7 --------- Run | Yrd Mat Sub Scr Machines Accessed 17 | . 9 . 8 Terminals 6 | . 6 . . Fabricators . | . . . . Repair Stations 1 | . 1 . . Recycling Units 2 | . 2 . . Scanalyzers . | . . . . Garrison Access . | . . . . Total Hacks 92 | . 33 . 59 Successful 82 | . 23 . 59 Failed 10 | . 10 . . Catastrophic 2 | . 2 . . Database Lockouts . | . . . . Manual 14 | . 13 . 1 Terminals 26 | . 26 . . Fabricators . | . . . . Repair Stations 1 | . 1 . . Recycling Units 6 | . 6 . . Scanalyzers . | . . . . Garrison Access . | . . . . Terminal Hacks 76 | . 17 . 59 Record 62 | . 3 . 59 Prototype ID Bank 1 | . 1 . . Level Access Points 1 | . 1 . . Branch Access Points 1 | . 1 . . Emergency Access Points 2 | . 2 . . Alert Level 1 | . 1 . . Locate Traps 3 | . 3 . . Dispatch Records 1 | . 1 . . Maintenance Status 1 | . 1 . . Zone Layout 3 | . 3 . . Fabricator Hacks . | . . . . Repair Station Hacks . | . . . . Recycling Unit Hacks 4 | . 4 . . Report Inventory 3 | . 3 . . Retrieve Components 1 | . 1 . . Scanalyzer . | . . . . Garrison Access Hacks . | . . . . Unauthorized Hacks 2 | . 2 . . Terminals . | . . . . Fabricators . | . . . . Repair Stations . | . . . . Recycling Units 2 | . 2 . . Reject 2 | . 2 . . Scanalyzers . | . . . . Garrison Access . | . . . . Data Cores Recovered . | . . . . Used . | . . . . Hacking Detections 7 | . 7 . . Full Trace Events . | . . . . Feedback Events . | . . . . Feedback Blocked . | . . . . Robot Schematics Acquired . | . . . . Robots Built . | . . . . Authchips . | . . . . Time . | . . . . Total Robot Build Rating . | . . . . Part Schematics Acquired . | . . . . Parts Built . | . . . . Authchips . | . . . . Time . | . . . . Total Part Build Rating . | . . . . Part Studies Acquired . | . . . . Parts Repaired . | . . . . Time . | . . . . Parts Recycled . | . . . . Recycled Matter . | . . . . Retrieved Matter . | . . . . Retrieved Components 8 | . 8 . . Parts Scanalyzed . | . . . . Part Schematics Acquired . | . . . . Parts Damaged . | . . . . Bothacking | -11 -10 -10 -7 ------------ Run | Yrd Mat Sub Scr Used RIF Installer . | . . . . Robots Hacked . | . . . . Non-combat . | . . . . Combat . | . . . . Robot Hacks Applied . | . . . . Relay Couplers Released . | . . . . Fabnet Peak Effective % . | . . . . Robots Rewired . | . . . . Allies Hacked . | . . . . Hacks Repelled . | . . . . Allies | -11 -10 -10 -7 -------- Run | Yrd Mat Sub Scr Total Allies . | . . . . Largest Group . | . . . . Highest-Rated Group . | . . . . Highest-Rated Ally . | . . . . Total Orders . | . . . . Ally Attacks . | . . . . Total Damage . | . . . . Kills . | . . . . Allies Corrupted . | . . . . Allies Melted 5 | . . . 5 Intel | -11 -10 -10 -7 ------- Run | Yrd Mat Sub Scr Active Infowar (turns) 2561 | . 920 218 1423 Optics 1245 | . . . 1245 Sensors 1316 | . 920 218 178 Robot Analysis Total . | . . . . Derelict Logs Recovered 1 | . . 1 . Drone Launches . | . . . . Drone Recoveries . | . . . . Exploration | -11 -10 -10 -7 ------------- Run | Yrd Mat Sub Scr Turns Passed 3267 | 58 1030 218 1961 Spaces Moved 2612 | 41 756 162 1653 Core 86 | 5 9 . 72 Treads . | . . . . Legs 1992 | 36 747 162 1047 Wheels 258 | . . . 258 Hover 276 | . . . 276 Flight . | . . . . Fastest Speed 50 | 50 50 120 56 Average Speed 113 | 111 119 120 109 Slowest Speed 300 | 120 190 120 300 Overloaded Moves . | . . . . Propulsion Burnouts . | . . . . Robots Hopped . | . . . . Potential Cave-ins . | . . . . Cave-ins Triggered . | . . . . Exploration Rate (%) 48 | 3 87 11 93 Regions Visited 3 Branch Regions 2 Pre-discovered Areas . | . . . . Known Exits Taken . | . . . . Unknown Exits Taken 3 | 1 1 1 . Scrap Searched 3 | . . . 3 Spaces Dug . | . . . . Terrain Destroyed . | . . . . Melee . | . . . . Projectile . | . . . . AOE . | . . . . Terrain Rammed . | . . . . Walls Destroyed . | . . . . Machines Disabled . | . . . . Actions | -11 -10 -10 -7 --------- Run | Yrd Mat Sub Scr Total 2915 | 53 863 185 1814 Wait 135 | . 41 24 70 Move 2609 | 40 755 161 1653 Hop . | . . . . Pick Up 61 | 7 19 . 35 Fast Attach 2 | . . . 2 Attach 24 | 6 9 . 9 Detach 3 | . 3 . . Swap 7 | . 1 . 6 Drop 47 | . 12 . 35 Fire 27 | . 23 . 4 Melee . | . . . . Ram . | . . . . Kick . | . . . . Crush . | . . . . Escape Stasis . | . . . . Rewire . | . . . . Trap . | . . . . Miscellaneous . | . . . . Route ------- -11/Scrapyard -10/Materials (discovered 6 exits: *Mat x3 / *Min x2 / [*Sub]) -10/Subcaves -7/Scraptown (discovered 1 exit: [*Fac]) History --------- Turn | Location | Event 24 | -11/Scrapyard | Discovered new exit (range 15) 59 | -11/Scrapyard | Entered Materials 238 | -10/Materials | Discovered new exit (range 15) 304 | -10/Materials | Build established: Mutant 348 | -10/Materials | Discovered new exit (range 6) 413 | -10/Materials | Discovered new exit (range 13) 413 | -10/Materials | Identified exit to Materials 758 | -10/Materials | Identified exit to Mines 815 | -10/Materials | Discovered new exit (range 9) 1089 | -10/Materials | Entered Subcaves 1090 | -10/Subcaves | Approached by a straggling Scientist 1094 | -10/Subcaves | Learned Materials trap positions 1175 | -10/Subcaves | Shifting Twisted Machinery released Mak. Light Armor Plating 1307 | -10/Subcaves | Entered Scraptown 1707 | -7/Scraptown | Visited IN-MT5's Study 1738 | -7/Scraptown | Visited Fellowship of the Rings 1763 | -7/Scraptown | Visited Cyclists 1970 | -7/Scraptown | Discovered new exit (range 5) 2116 | -7/Scraptown | Visited Shadow of the Wyrm 2139 | -7/Scraptown | Visited TADAMA 2167 | -7/Scraptown | Visited UFD Registry 2167 | -7/Scraptown | Registered with UFD as "Shortchassis" 2185 | -7/Scraptown | Visited Spacefarers 2268 | -7/Scraptown | Visited Cave Peace 2547 | -7/Scraptown | Visited Scrapoid Pod Storage 2590 | -7/Scraptown | Visited Modified Component R&D 2654 | -7/Scraptown | Visited Scrap Suit Storage 2677 | -7/Scraptown | Found Scrap Suit 2696 | -7/Scraptown | Visited A0-MCA Data Center 2708 | -7/Scraptown | Given a C- rating by A0-MCA 2729 | -7/Scraptown | Found A0-MCA's Component Scanner 2777 | -7/Scraptown | Visited Junk Repository 2839 | -7/Scraptown | Visited Research Penetration Think Tank 2867 | -7/Scraptown | Met Optimus 2867 | -7/Scraptown | Accepted into 0bPrime 2970 | -7/Scraptown | Visited Derelict Rescue Squad 3009 | -7/Scraptown | Civil war broke out across Scraptown 3089 | -7/Scraptown | Lost 8 allies 3110 | -7/Scraptown | Visited Supply Room 3229 | -7/Scraptown | Optimus destroyed in the chaos of civil war 3230 | -7/Scraptown | Visited Analyses Database 3257 | -7/Scraptown | Core integrity fell below 50% 3268 | -7/Scraptown | Destroyed by K5-GPX(j) with Overtuned Pulse Rifle Last Messages --------------- Acquired 10 matter. Acquired Mak. Hacking Suite. ANNOUNCEMENT: The traitor Optimus has been dealt with. Put down any remaining collaborators. GC-IBY(j) destroyed. FN-VD3(j) destroyed. 30-K82(j) destroyed. K5-GPX(j) cannibalizes Lgt. Deuterium Engine to repair Lgt. Deuterium Engine. S0-EVX(j) destroyed. K5-GPX(j) cannibalizes Ovr. Pulse Rifle to repair Ovr. Pulse Rifle. Mak. Power Source destroyed. Ovr. Pulse Rifle destroyed. Acquired 5 matter. Acquired Imp. Hover Unit. SZ-OE9(x) suffers critical hit (Destroy). Lgt. Nuclear Core destroyed. SZ-OE9(x) destroyed. Mak. Hover Unit destroyed. Map ----- +----------------------------------------------------+ | #???# #?# #?????######## ########## | | ########## ########### ####???????##### ########## | | #???????#"""" """""""""" | | #???????#" | | #???????#" | | #???????#" | | #???????#" | | ################# #???#####" | | #???############# #???#"""" """"""""" | | #???# # #???#"""" """"""""" | | #???# """ "" "" # #???#"""" ""###### | | #???# " # M #???#"""" ""# | | #???# """""""# #???#"""" [*%* ""# | | #????#"""" "# *###?#"""" !%!! ""# "" | | #????# ### ## [!%""#"#""""!!!= "# "" | | #???########## ## !""""#""""=[%!! ""# " | | #???#" "# ""#######"[=%! " " | | #???#"" """"" "# ###?????#!!!*=["" " | | #???#" """"" "# #########" %*!!""# " | | #???#"" """"" "# jj *%[!%!=!=! "# "" | | #???#" "# !%g=*%!!![!""# "" | | #???# # =[[%!%*!=!""# | | #???# # =!!![![[[* "# | | ############ #### TT ! */!!!!%=!!"###### | | ==! TT !% ! [b!!=%% """""""" | | @ !!=!=*! [b!![="""""""" | | % !!==%! %!!* =!!%=*! | | = [=[!%*!%[*%[ %![![![=! = | | =%! ! j![[=[%j*==[%/ =%!%!!!%! | | !! =% *%/%#""""#" ! =!!==*== | | j= ! !%#????# =!= | | *!!!#????#" "" " """""""" | | ################### ### =####????####### ######## | | #??????# ## g #??????????#" "#??# | | "#??????# ## #??????????#" "#??# | | "#??????# " ## #??????????#" "#??# | | "#??????# """ ## #??????????#" ! "#??# | | # #####??????# """"" ## #??????????#""""""" #??# | | # #??????????# ""X"" ## #??????????##########??# | | # ??????????# "" "" ## #??????????????????????? | | # ?????????# ## #??????????????????????? | | # ????????########## #??????????????????????? | | #"""##????????????????# #??????????????????????? | | #####?????????????????# #??????????????????????? | | ???????????############ #??????????????????????? | | ???????????#""""""""""" #????################### | | ???????????#""""" """"" #????# %[##"""##"" | | ?????#######"""" " "" #????# """"""=!## ""##|" | | ?????# #????# """""" | | ??#### #####"" "" "" " #????# """"""" | +----------------------------------------------------+ Best States ------------- Heat Dissipation 25 Energy Generation 15 Energy Capacity 250 Matter Stores 300 Matter Capacity 300 Sight Range 18 Robot Scan Range 14 Terrain Scan Density 10 Resistance: KI 20 Resistance: TH 20 Resistance: EX 20 Resistance: EM 20 Resistance: I 20 Resistance: S 20 Resistance: P 20 Evasion (%) 55 Targeting Accuracy 10 Offensive Hacking 10 Item Schematics ----------------- None Robot Schematics ------------------ None Fabricated ------------ Nothing Repaired ---------- Nothing Studied --------- None Alien Tech Used ----------------- None Achievements -------------- Civilization 2243 Link The Feds Challenges ------------ None Game ------ Seed TractorHybridFlail Manual? 0 Play Time 01:33:42 Cumulative 12.9 hours Start 2026.02.14 @ 11:12:41 End 2026.02.14 @ 15:10:42 Sessions 1 Manual Loads 0 Difficulty Adventurer Special Mode None Game No. 12 Rogue 0 Adventurer 12 Explorer 0 Win Type - Total 0 Types 0/0/0/0/0/0/0/0/0/0 Lore% 12 Gallery% 12 Achievement% 13 Wizard Run 0 Options --------- Layout 1 ASCII 0 Keyboard 0 Movement Mouse Keybinds 0 Fullscreen 1 Font 24/Smallcaps Map View 50x40 Zoom Use 0% Tactical HUD 0 Map Filters NONE Filters NONE Steam 1 RUN: 6e58bb98-3899-43b8-be2f-80c2241ad5ec